bitfinex/quotes_BTCUSD_20240701
["timestamp","ask_amount","ask_price","bid_price","bid_amount"]
[1719866331178,2.03139246,63351.0,63350.0,0.004]
[1719866331621,2.08619246,63351.0,63350.0,0.004]
[1719866331820,2.08519246,63351.0,63350.0,0.002]
[1719866332296,2.08619246,63351.0,63350.0,0.002]
[1719866332680,0.157868,63344.0,63343.0,0.2]
[1719866332918,0.50689489,63344.0,63343.0,0.2]
[1719866333119,0.36160174,63344.0,63343.0,0.2]
[1719866333335,0.36150174,63344.0,63343.0,0.2]
[1719866333731,1.01571954,63344.0,63343.0,0.2]
[1719866334158,1.70309154,63344.0,63343.0,0.002]
[1719866334716,1.70309154,63344.0,63343.0,0.003]
[1719866334895,1.70399154,63344.0,63343.0,0.003]
[1719866335741,1.64909154,63344.0,63343.0,0.003]
[1719866336353,1.64809154,63344.0,63343.0,0.001]
[1719866336804,0.59464919,63340.0,63339.0,0.139524]
[1719866337006,0.2977223,63340.0,63339.0,0.45974298]
[1719866337225,0.59464919,63340.0,63339.0,0.77550398]
[1719866337395,0.60722404,63340.0,63339.0,0.77550398]
[1719866337980,0.60822404,63340.0,63339.0,0.77650398]
[1719866338180,0.60812404,63340.0,63339.0,0.77650398]
[1719866338402,0.60812404,63340.0,63339.0,0.77850398]
[1719866338403,0.60912404,63340.0,63339.0,0.77850398]
[1719866338964,0.60902404,63340.0,63339.0,0.77850398]
[1719866340563,0.31150174,63340.0,63339.0,0.77850398]
[1719866340809,0.31150174,63340.0,63339.0,1.09426498]
[1719866341970,0.60902404,63340.0,63339.0,0.003024]
[1719866342181,0.66092404,63340.0,63339.0,0.003024]
[1719866342391,0.60892404,63340.0,63339.0,0.003024]
[1719866343158,0.66082404,63340.0,63339.0,0.003024]
[1719866343799,0.66072404,63340.0,63339.0,0.003024]
[1719866345112,0.66062404,63340.0,63339.0,0.003024]
[1719866347229,0.60872404,63340.0,63339.0,0.003024]
[1719866347439,0.31120174,63340.0,63339.0,0.003024]
[1719866347638,0.31120174,63340.0,63339.0,0.476665]
[1719866347846,0.31120174,63340.0,63339.0,0.160904]
[1719866348049,0.60872404,63340.0,63339.0,0.160904]
[1719866348255,0.60862404,63340.0,63339.0,0.160904]
[1719866348797,0.60862404,63340.0,63339.0,0.476665]
[1719866348933,0.31110174,63340.0,63339.0,0.476665]
[1719866349357,0.01457485,63340.0,63339.0,0.476665]
[1719866349612,0.31110174,63340.0,63339.0,0.476665]
[1719866350237,0.01457485,63340.0,63339.0,0.476665]
[1719866350371,0.31110174,63340.0,63339.0,0.476665]
[1719866351015,0.31100174,63340.0,63339.0,0.476665]
[1719866351216,0.31110174,63340.0,63339.0,0.476665]
[1719866351834,0.60862404,63340.0,63339.0,0.476665]
[1719866352245,0.60862404,63340.0,63339.0,0.476765]
[1719866353384,0.60872404,63340.0,63339.0,0.476765]
[1719866354767,0.01467485,63340.0,63339.0,0.476765]
[1719866355105,0.31219715,63340.0,63339.0,0.476765]
[1719866355285,0.60872404,63340.0,63339.0,0.476765]
[1719866355490,0.60872404,63340.0,63339.0,0.476865]
[1719866355990,0.60872404,63340.0,63339.0,0.792626]
[1719866357580,0.60872404,63340.0,63339.0,0.476865]
[1719866357816,0.60872404,63340.0,63339.0,0.161104]
[1719866357817,0.66062404,63340.0,63339.0,0.161104]
[1719866358042,0.66062404,63340.0,63339.0,0.003224]
[1719866358281,0.66062404,63340.0,63339.0,0.161104]
[1719866360582,0.60872404,63340.0,63339.0,0.161104]
[1719866361685,0.60872404,63340.0,63339.0,0.476865]
[1719866364559,0.60872404,63340.0,63339.0,0.792626]
[1719866365190,0.31219715,63340.0,63339.0,0.792626]
[1719866365438,0.60872404,63340.0,63339.0,0.792626]
[1719866367479,0.60872404,63340.0,63339.0,0.476865]
[1719866368187,0.63722404,63340.0,63339.0,0.476865]
[1719866368390,0.66062404,63340.0,63339.0,0.476865]
[1719866369469,0.60872404,63340.0,63339.0,0.476865]
[1719866371505,0.66062404,63340.0,63339.0,0.476865]
[1719866374353,0.66062404,63340.0,63339.0,0.161104]
[1719866374999,0.66146404,63340.0,63339.0,0.161104]
[1719866375415,1.00289154,63340.0,63339.0,0.003224]
[1719866375922,1.03954688,63340.0,63339.0,0.003224]
[1719866376150,1.82603688,63340.0,63339.0,0.003224]
[1719866378274,1.85603688,63340.0,63339.0,0.003224]
[1719866379096,1.82603688,63340.0,63339.0,0.003224]
[1719866380740,1.88093688,63340.0,63339.0,0.003224]
[1719866382129,1.82603688,63340.0,63339.0,0.003224]
[1719866382449,1.88093688,63340.0,63339.0,0.003224]
[1719866384957,2.22669288,63340.0,63339.0,0.003224]
[1719866385169,2.30701429,63340.0,63339.0,0.003224]
[1719866385374,2.23591001,63340.0,63339.0,0.003224]
[1719866385574,2.25451762,63340.0,63339.0,0.003224]
[1719866386371,2.25260426,63340.0,63339.0,0.000224]
[1719866386489,2.25260426,63340.0,63339.0,0.001224]
[1719866387157,2.37104901,63340.0,63339.0,0.001224]
[1719866387373,2.38004901,63340.0,63339.0,0.001224]
[1719866387515,2.37104901,63340.0,63339.0,0.001224]
[1719866387717,2.37104901,63340.0,63339.0,0.000224]
[1719866387964,2.38304901,63340.0,63339.0,0.000224]
[1719866388192,2.39204901,63340.0,63339.0,0.000224]
[1719866389325,2.26430049,63340.0,63339.0,0.000224]
[1719866389538,2.27354624,63340.0,63339.0,0.000224]
[1719866390097,2.31458003,63340.0,63339.0,0.000224]
[1719866390307,2.26430049,63340.0,63339.0,0.000224]
[1719866390505,2.23430049,63340.0,63339.0,0.000224]
[1719866390720,2.26430049,63340.0,63339.0,0.000224]
[1719866391533,1.77864449,63340.0,63339.0,0.000224]
[1719866391762,1.68708915,63340.0,63339.0,0.000224]
[1719866392180,1.72374792,63340.0,63339.0,0.000224]
[1719866392641,1.71474792,63340.0,63339.0,0.000224]
[1719866392792,1.70374792,63340.0,63339.0,0.000224]
[1719866393003,1.70774792,63340.0,63339.0,0.000224]
[1719866394668,1.39199192,63340.0,63339.0,0.000224]
[1719866394869,1.35533315,63340.0,63339.0,0.000224]
[1719866395307,1.39199165,63340.0,63339.0,0.000224]
[1719866395509,1.35533315,63340.0,63339.0,0.000224]
[1719866395836,1.39198974,63340.0,63339.0,0.000224]
[1719866396040,1.35533315,63340.0,63339.0,0.000224]
[1719866397497,0.31603715,63340.0,63339.0,1.67022598]
[1719866397668,0.51466465,63340.0,63339.0,1.29956498]
[1719866398010,0.81119154,63340.0,63339.0,1.29956498]
[1719866398351,0.81019154,63340.0,63339.0,1.29956498]
[1719866399792,0.80619154,63340.0,63339.0,1.29956498]
[1719866399988,0.80919154,63340.0,63339.0,1.29956498]
[1719866400410,0.80719154,63340.0,63339.0,1.30156498]
[1719866400606,0.80819154,63340.0,63339.0,1.30456498]
[1719866401481,0.86009154,63340.0,63339.0,0.98880398]
[1719866402382,0.86009154,63340.0,63339.0,0.84120398]
[1719866402745,0.85909154,63340.0,63339.0,0.83820398]
[1719866403247,0.86009154,63340.0,63339.0,0.84120398]
[1719866403655,0.85909154,63340.0,63339.0,0.83920398]
[1719866404075,0.80819154,63340.0,63339.0,1.15696498]
[1719866404295,0.81200768,63340.0,63339.0,1.15696498]
[1719866409548,0.51548079,63340.0,63339.0,1.15696498]
[1719866412369,0.21795849,63340.0,63339.0,1.16356498]
[1719866412570,0.81200768,63340.0,63339.0,1.23396498]
[1719866415464,0.21795849,63340.0,63339.0,1.23396498]
[1719866415765,0.51548079,63340.0,63339.0,1.23396498]
[1719866418494,0.01933099,63340.0,63339.0,1.55632598]
[1719866418747,0.2016675,63340.0,63339.0,1.62142598]
[1719866419461,0.21798159,63340.0,63339.0,1.62142598]
[1719866419661,0.2016675,63340.0,63339.0,1.62142598]
[1719866420250,0.21798159,63340.0,63339.0,1.62142598]
[1719866421393,0.01935409,63340.0,63339.0,1.62142598]
[1719866421606,0.01935409,63340.0,63339.0,2.06613779]
[1719866421810,0.00304,63340.0,63339.0,2.19381873]
[1719866422216,0.00304,63340.0,63339.0,2.50957973]
[1719866422465,0.00204,63340.0,63339.0,2.50657973]
[1719866422668,0.00104,63340.0,63339.0,2.50457973]
[1719866422879,0.00104,63340.0,63339.0,2.50657973]
[1719866423089,0.00204,63340.0,63339.0,2.50657973]
[1719866423261,0.00204,63340.0,63339.0,2.51005284]
[1719866423464,0.00104,63340.0,63339.0,2.50805284]
[1719866423883,0.01604,63340.0,63339.0,2.51805284]
[1719866424043,0.01604,63340.0,63339.0,2.51457973]
[1719866424383,0.01604,63340.0,63339.0,2.50805284]
[1719866424729,0.01504,63340.0,63339.0,2.37689879]
[1719866425013,0.01504,63340.0,63339.0,2.5080344]
[1719866425421,0.02504,63340.0,63339.0,2.5090344]
[1719866426011,0.02504,63340.0,63339.0,2.50556129]
[1719866426415,0.02504,63340.0,63339.0,2.5090344]
[1719866432038,0.02504,63340.0,63339.0,2.50556138]
[1719866432229,0.02504,63340.0,63339.0,2.50903449]
[1719866433893,0.02504,63340.0,63339.0,2.50903449]
[1719866434437,0.02504,63340.0,63339.0,2.37789879]
[1719866434585,0.02504,63340.0,63339.0,2.50903389]
[1719866437520,0.02504,63340.0,63339.0,2.82616739]
[1719866437521,0.01,63340.0,63339.0,2.82616739]
[1719866437888,0.1986275,63359.0,63358.0,0.164433]
[1719866438119,0.1986275,63361.0,63360.0,0.480084]
[1719866438252,0.1986275,63361.0,63360.0,0.64242298]
[1719866438448,0.1986275,63361.0,63360.0,1.26713498]
[1719866438646,0.1986275,63361.0,63360.0,1.27373498]
[1719866438845,0.1986275,63361.0,63360.0,1.26713498]
[1719866439052,0.1986275,63361.0,63360.0,1.27373498]
[1719866439575,0.1986275,63361.0,63360.0,1.27573498]
[1719866439756,0.1986275,63361.0,63360.0,1.27373498]
[1719866441014,0.49515439,63361.0,63360.0,1.26713498]
[1719866441135,0.49515439,63361.0,63360.0,1.27813498]
[1719866441344,0.1986275,63361.0,63360.0,1.27813498]
[1719866442188,0.1986275,63361.0,63360.0,1.27803498]
[1719866443447,0.1986275,63361.0,63360.0,1.29103498]
[1719866444609,0.1986275,63361.0,63360.0,1.29093498]
[1719866446435,0.1986275,63361.0,63360.0,1.29083498]
[1719866446638,0.1986275,63361.0,63360.0,1.29743498]
[1719866446989,0.1986275,63361.0,63360.0,1.29083498]
[1719866447190,0.1986275,63361.0,63360.0,1.29073498]
[1719866450386,0.21999272,63361.0,63360.0,1.29073498]
[1719866450770,0.1986275,63361.0,63360.0,1.29073498]
[1719866450978,0.1986275,63361.0,63360.0,1.29063498]
[1719866451863,0.1986275,63361.0,63360.0,1.29053498]
[1719866453690,0.1986275,63361.0,63360.0,1.29043498]
[1719866454311,0.1986275,63361.0,63360.0,1.29033498]
[1719866454716,0.21999272,63361.0,63360.0,1.29033498]
[1719866458098,0.22009272,63361.0,63360.0,1.29033498]
[1719866459053,0.22019272,63361.0,63360.0,1.29033498]
[1719866465796,0.02156522,63361.0,63360.0,1.29693498]
[1719866465968,0.02156522,63361.0,63360.0,1.48963498]
[1719866466336,0.0002,63361.0,63360.0,1.48963498]
[1719866471840,0.0002,63361.0,63360.0,1.47663498]
[1719866472068,0.0002,63361.0,63360.0,1.46563498]
[1719866472263,0.0002,63361.0,63360.0,1.47963498]
[1719866472584,0.0012,63361.0,63360.0,1.47963498]
[1719866472811,0.0012,63361.0,63360.0,1.49363498]
[1719866478206,0.02134466,63361.0,63360.0,1.35583498]
[1719866478410,0.0012,63361.0,63360.0,1.35583498]
[1719866478609,0.75749385,63361.0,63360.0,0.97947898]
[1719866478833,0.75749385,63361.0,63360.0,0.028]
[1719866478834,1.14570169,63361.0,63360.0,0.028]
[1719866479029,1.48150307,63361.0,63360.0,0.028]
[1719866479619,1.79715407,63361.0,63360.0,0.028]
[1719866479815,1.79715407,63361.0,63360.0,0.014]
[1719866480094,0.4553523,63359.0,63358.0,0.0002]
[1719866480222,1.00097919,63359.0,63358.0,0.0002]
[1719866480424,1.2197174,63359.0,63358.0,0.0002]
[1719866482127,1.2197174,63359.0,63358.0,0.0052]
[1719866482335,1.5353784,63359.0,63358.0,0.0052]
[1719866482560,1.5653784,63359.0,63358.0,0.0052]
[1719866482757,1.8810394,63359.0,63358.0,0.0052]
[1719866482962,1.8810394,63359.0,63358.0,0.0132]
[1719866483367,2.1967004,63359.0,63358.0,0.0132]
[1719866483583,2.1967004,63359.0,63358.0,0.0002]
[1719866484034,2.1987004,63359.0,63358.0,0.0002]
[1719866484412,2.20799935,63359.0,63358.0,0.0002]
[1719866484723,2.24463726,63359.0,63358.0,0.0002]
[1719866484871,2.23533831,63359.0,63358.0,0.0002]
[1719866485294,2.24463832,63359.0,63358.0,0.0002]
[1719866488918,2.23533831,63359.0,63358.0,0.0002]
[1719866489122,2.24474322,63359.0,63358.0,0.0002]
[1719866489496,3.0227432,63359.0,63358.0,0.0002]
[1719866489708,1.51683919,63340.0,63339.0,0.07936704]
[1719866489847,1.58213919,63340.0,63339.0,2.4e-05]
[1719866490053,1.28646183,63340.0,63339.0,2.4e-05]
[1719866492148,1.28746183,63340.0,63339.0,0.012024]
[1719866492363,1.28746183,63340.0,63339.0,0.014024]
[1719866492561,1.28736183,63340.0,63339.0,0.014024]
[1719866492926,1.28736183,63340.0,63339.0,2.4e-05]
[1719866493088,1.28836183,63340.0,63339.0,0.016024]
[1719866495723,1.85754533,63340.0,63339.0,0.016024]
[1719866496401,1.88754533,63340.0,63339.0,0.016024]
[1719866497714,1.83736669,63340.0,63339.0,0.016024]
[1719866497918,1.85733294,63340.0,63339.0,0.016024]
[1719866500725,1.85743294,63340.0,63339.0,0.016024]
[1719866501904,1.85753294,63340.0,63339.0,0.016024]
[1719866502743,1.85753294,63340.0,63339.0,0.016124]
[1719866503708,2.20328894,63340.0,63339.0,0.016124]
[1719866505892,2.20128894,63340.0,63339.0,0.009124]
[1719866506088,2.20128894,63340.0,63339.0,0.000124]
[1719866506326,2.20228894,63340.0,63339.0,0.002124]
[1719866507452,2.20228894,63340.0,63339.0,0.002224]
[1719866510016,2.14738894,63340.0,63339.0,0.002224]
[1719866510184,2.20228894,63340.0,63339.0,0.002224]
[1719866512433,2.11738894,63340.0,63339.0,0.002224]
[1719866512779,2.20228894,63340.0,63339.0,0.002224]
[1719866514936,2.17228894,63340.0,63339.0,0.002224]
[1719866515142,2.20895263,63340.0,63339.0,0.002224]
[1719866515804,2.15405263,63340.0,63339.0,0.002224]
[1719866515955,2.20895263,63340.0,63339.0,0.002224]
[1719866517826,1.37604063,63340.0,63339.0,0.002224]
[1719866518200,1.33937694,63340.0,63339.0,0.002224]
[1719866521067,1.02362094,63340.0,63339.0,0.002224]
[1719866522410,0.86574294,63340.0,63339.0,0.002224]
[1719866524266,0.90240332,63340.0,63339.0,0.002224]
[1719866525573,1.37603732,63340.0,63339.0,0.002224]
[1719866525774,1.57213732,63340.0,63339.0,0.002224]
[1719866526009,1.89736486,63340.0,63339.0,0.002224]
[1719866526190,2.21312086,63340.0,63339.0,0.002224]
[1719866526896,2.21317162,63340.0,63339.0,0.002224]
[1719866527553,2.24317162,63340.0,63339.0,0.002224]
[1719866527974,2.15827162,63340.0,63339.0,0.002224]
[1719866528145,2.21317162,63340.0,63339.0,0.002224]
[1719866528514,1.89741562,63340.0,63339.0,0.002224]
[1719866530075,1.89745381,63340.0,63339.0,0.002224]
[1719866532351,1.84339381,63340.0,63339.0,0.002224]
[1719866532536,1.75709381,63340.0,63339.0,0.002224]
[1719866533095,1.70219381,63340.0,63339.0,0.002224]
[1719866533475,0.85134332,63340.0,63339.0,0.002224]
[1719866533746,0.90324332,63340.0,63339.0,0.002224]
[1719866534352,1.06112132,63340.0,63339.0,0.002224]
[1719866535357,0.90324332,63340.0,63339.0,0.002224]
[1719866540477,0.86658294,63340.0,63339.0,0.002224]
[1719866540676,0.90323925,63340.0,63339.0,0.002224]
[1719866540905,0.25729006,63340.0,63339.0,0.95396498]
[1719866541299,0.51815605,63340.0,63339.0,1.09226498]
[1719866542220,0.4981898,63340.0,63339.0,1.09226498]
[1719866542602,0.51815602,63340.0,63339.0,1.09226498]
[1719866545559,0.81468291,63340.0,63339.0,1.09226498]
[1719866547382,0.51815602,63340.0,63339.0,1.09226498]
[1719866547581,0.81468291,63340.0,63339.0,1.09226498]
[1719866550678,0.51815602,63340.0,63339.0,1.09226498]
[1719866551323,0.51815602,63340.0,63339.0,1.41382598]
[1719866551324,0.22063372,63340.0,63339.0,1.41382598]
[1719866551545,0.22063372,63340.0,63339.0,1.40722598]
[1719866551805,0.22063372,63340.0,63339.0,1.46872598]
[1719866551973,0.2006675,63340.0,63339.0,1.46872598]
[1719866552550,0.1996675,63340.0,63339.0,1.46872598]
[1719866552771,0.1996675,63340.0,63339.0,1.47572598]
[1719866552979,0.2006675,63340.0,63339.0,1.48772598]
[1719866553195,0.2006675,63340.0,63339.0,1.47872598]
[1719866553618,0.2006675,63340.0,63339.0,1.46672598]
[1719866553827,0.2016675,63340.0,63339.0,1.48072598]
[1719866554964,0.2016675,63340.0,63339.0,1.42582598]
[1719866555386,0.2016675,63340.0,63339.0,1.43982598]
[1719866557203,0.00304,63340.0,63339.0,1.75558698]
[1719866557437,0.00304,63340.0,63339.0,1.77858698]
[1719866567848,0.00101237,63340.0,63339.0,1.77858698]
[1719866572136,0.00111237,63340.0,63339.0,1.77858698]
[1719866573005,0.00121237,63340.0,63339.0,1.77858698]
[1719866574543,0.00121237,63340.0,63339.0,1.83348698]
[1719866575101,0.00121237,63340.0,63339.0,1.96462807]
[1719866578106,0.00121237,63340.0,63339.0,1.96462805]
[1719866579317,0.00121237,63340.0,63339.0,2.07057886]
[1719866579537,0.00121237,63340.0,63339.0,2.06710575]
[1719866579704,0.00121237,63340.0,63339.0,2.07057886]
[1719866580124,0.0002,63340.0,63339.0,2.03910575]
[1719866580416,0.0002,63340.0,63339.0,2.05310575]
[1719866580594,0.0012,63340.0,63339.0,2.05310575]
[1719866580943,0.0012,63340.0,63339.0,2.0670994]
[1719866582602,0.0012,63340.0,63339.0,2.0121994]
[1719866582802,0.0012,63340.0,63339.0,2.0670994]
[1719866583747,0.0012,63340.0,63339.0,1.93596468]
[1719866583951,0.0012,63340.0,63339.0,2.06709665]
[1719866584153,0.0012,63340.0,63339.0,2.11413343]
[1719866584382,0.0012,63340.0,63339.0,2.06709663]
[1719866584575,0.0012,63340.0,63339.0,2.11413843]
[1719866584913,0.0012,63340.0,63339.0,2.38285763]
[1719866585152,0.0012,63340.0,63339.0,2.45689344]
[1719866585320,0.0012,63340.0,63339.0,2.48041434]
[1719866585530,0.0012,63340.0,63339.0,2.38633074]
[1719866586699,0.0012,63340.0,63339.0,2.48178684]
[1719866586906,0.0012,63340.0,63339.0,2.50529071]
[1719866587695,0.0012,63340.0,63339.0,2.49129071]
[1719866588637,0.0002,63340.0,63339.0,2.47729071]
[1719866589216,0.0002,63340.0,63339.0,2.47929071]
[1719866589430,0.0002,63340.0,63339.0,2.36169468]
[1719866589986,0.0002,63340.0,63339.0,2.36169102]
[1719866592538,0.0002,63340.0,63339.0,2.45574074]
[1719866593370,0.0002,63340.0,63339.0,2.45573405]
[1719866594171,0.0002,63340.0,63339.0,2.36169102]
[1719866594356,0.0002,63340.0,63339.0,2.45573323]
[1719866594996,0.0002,63340.0,63339.0,2.86573323]
[1719866595203,0.00084,63360.0,63359.0,1.707074]
[1719866595414,0.14274,63360.0,63359.0,1.62505198]
[1719866595843,0.15708457,63360.0,63359.0,1.62505198]
[1719866596459,0.15708457,63360.0,63359.0,1.63905198]
[1719866596592,0.15708457,63360.0,63359.0,1.65865198]
[1719866596824,0.15708457,63360.0,63359.0,1.70783798]
[1719866597027,0.79963376,63360.0,63359.0,0.36233898]
[1719866597233,0.79963376,63360.0,63359.0,0.39033898]
[1719866597439,1.47174526,63360.0,63359.0,0.028]
[1719866597671,1.50174526,63360.0,63359.0,0.028]
[1719866597833,1.78740126,63360.0,63359.0,0.028]
[1719866598034,1.81740126,63360.0,63359.0,0.028]
[1719866598658,1.81740126,63360.0,63354.0,0.2]
[1719866598659,1.34391726,63360.0,63354.0,0.2]
[1719866598875,0.94228819,63356.0,63355.0,0.16233898]
[1719866599284,0.95664559,63356.0,63355.0,0.16233898]
[1719866599757,0.95664559,63356.0,63355.0,0.16223898]
[1719866600134,1.15527309,63356.0,63355.0,0.16323898]
[1719866601109,1.15527309,63356.0,63355.0,0.16313898]
[1719866601528,1.78662509,63356.0,63355.0,0.001]
[1719866602346,1.84152509,63356.0,63355.0,0.001]
[1719866602574,1.27612889,63355.0,63354.0,0.2]
[1719866602919,1.29046552,63355.0,63354.0,0.2]
[1719866603379,1.48909302,63355.0,63354.0,0.2]
[1719866604228,1.78661532,63355.0,63354.0,0.2]
[1719866604453,1.78661532,63355.0,63354.0,0.202]
[1719866605702,1.78651532,63355.0,63354.0,0.202]
[1719866606112,1.78641532,63355.0,63354.0,0.202]
[1719866606487,1.78641532,63355.0,63354.0,0.002]
[1719866608931,1.47073432,63355.0,63354.0,0.002]
[1719866609312,1.47063432,63355.0,63354.0,0.002]
[1719866610413,1.47053432,63355.0,63354.0,0.002]
[1719866613330,1.47043432,63355.0,63354.0,0.002]
[1719866613939,1.78611532,63355.0,63354.0,0.002]
[1719866614275,1.85273924,63355.0,63354.0,0.002]
[1719866614505,2.13179632,63355.0,63354.0,0.002]
[1719866614726,2.16842066,63355.0,63354.0,0.002]
[1719866615042,2.17822037,63355.0,63354.0,0.002]
[1719866615263,2.16832066,63355.0,63354.0,0.002]
[1719866616079,2.13832066,63355.0,63354.0,0.002]
[1719866616279,2.16832066,63355.0,63354.0,0.002]
[1719866618307,2.16822066,63355.0,63354.0,0.002]
[1719866620156,2.13822066,63355.0,63354.0,0.0021]
[1719866620559,2.13801122,63355.0,63354.0,0.0021]
[1719866621532,2.13801122,63355.0,63354.0,0.0022]
[1719866623108,2.16801122,63355.0,63354.0,0.0022]
[1719866625417,2.17794817,63355.0,63354.0,0.0022]
[1719866626340,1.86226717,63355.0,63354.0,0.0022]
[1719866626750,1.69376717,63355.0,63354.0,0.0022]
[1719866626953,1.83816717,63355.0,63354.0,0.0022]
[1719866628165,1.83816717,63355.0,63354.0,0.003124]
[1719866628342,1.52248617,63355.0,63354.0,0.003124]
[1719866628543,1.52332154,63355.0,63354.0,0.003124]
[1719866628786,1.05330822,63355.0,63354.0,0.003124]
[1719866628991,1.01668388,63355.0,63354.0,0.003124]
[1719866631467,1.05331175,63355.0,63354.0,0.003124]
[1719866631899,1.05308975,63355.0,63354.0,0.003124]
[1719866634183,1.91805175,63355.0,63354.0,0.003124]
[1719866634408,2.24361678,63355.0,63354.0,0.003124]
[1719866635279,2.24362742,63355.0,63354.0,0.003124]
[1719866635684,2.24362735,63355.0,63354.0,0.003124]
[1719866636862,2.18872735,63355.0,63354.0,0.003124]
[1719866637067,2.24362735,63355.0,63354.0,0.003124]
[1719866638116,2.23373275,63355.0,63354.0,0.003124]
[1719866638264,2.243651,63355.0,63354.0,0.003124]
[1719866640936,2.24364194,63355.0,63354.0,0.003124]
[1719866641349,2.3146254,63355.0,63354.0,0.003124]
[1719866642578,2.24364194,63355.0,63354.0,0.003124]
[1719866643312,2.33828656,63355.0,63354.0,0.003124]
[1719866643935,2.33837062,63355.0,63354.0,0.003124]
[1719866647127,2.32846869,63355.0,63354.0,0.003124]
[1719866647323,2.33838282,63355.0,63354.0,0.003124]
[1719866647596,2.23373275,63355.0,63354.0,0.003124]
[1719866647872,2.33838586,63355.0,63354.0,0.003124]
[1719866650398,2.24364483,63355.0,63354.0,0.003124]
[1719866653537,2.2436485,63355.0,63354.0,0.003124]
[1719866655141,2.36208226,63355.0,63354.0,0.003124]
[1719866656648,2.3620904,63355.0,63354.0,0.003124]
[1719866657429,2.24361963,63355.0,63354.0,0.003124]
[1719866660379,2.15872838,63355.0,63354.0,0.003124]
[1719866660581,2.21362838,63355.0,63354.0,0.003124]
[1719866660900,2.24362838,63355.0,63354.0,0.003124]
[1719866662512,2.21362838,63355.0,63354.0,0.003124]
[1719866662999,2.21363685,63355.0,63354.0,0.003124]
[1719866664269,2.21363709,63355.0,63354.0,0.003124]
[1719866666421,2.21361801,63355.0,63354.0,0.003124]
[1719866667163,2.20373275,63355.0,63354.0,0.003124]
[1719866667392,2.21361216,63355.0,63354.0,0.003124]
[1719866668961,2.20373275,63355.0,63354.0,0.003124]
[1719866669982,2.23373275,63355.0,63354.0,0.003124]
[1719866670176,2.24361052,63355.0,63354.0,0.003124]
[1719866670794,2.24360494,63355.0,63354.0,0.003124]
[1719866672824,2.23373275,63355.0,63354.0,0.003124]
[1719866673017,2.24360888,63355.0,63354.0,0.003124]
[1719866673850,2.3620929,63355.0,63354.0,0.003124]
[1719866674613,2.24360888,63355.0,63354.0,0.003124]
[1719866674813,2.21360888,63355.0,63354.0,0.003124]
[1719866675155,2.24360888,63355.0,63354.0,0.003124]
[1719866676275,2.23373275,63355.0,63354.0,0.003124]
[1719866676479,2.24360902,63355.0,63354.0,0.003124]
[1719866676822,2.24360901,63355.0,63354.0,0.003124]
[1719866677624,2.24360901,63355.0,63354.0,0.003124]
[1719866677815,2.23373275,63355.0,63354.0,0.003124]
[1719866678016,2.24360901,63355.0,63354.0,0.003124]
[1719866679528,2.23373275,63355.0,63354.0,0.003124]
[1719866679736,2.24360891,63355.0,63354.0,0.003124]
[1719866682606,2.23373275,63355.0,63354.0,0.003124]
[1719866682803,2.24360392,63355.0,63354.0,0.003124]
[1719866683356,2.21360392,63355.0,63354.0,0.003124]
[1719866684583,2.24360392,63355.0,63354.0,0.003124]
[1719866685798,2.23373275,63355.0,63354.0,0.003124]
[1719866686066,2.2435956,63355.0,63354.0,0.003124]
[1719866689530,2.23373275,63355.0,63354.0,0.003124]
[1719866689826,2.24359156,63355.0,63354.0,0.003124]
[1719866692327,2.23373275,63355.0,63354.0,0.003124]
[1719866692536,2.24361004,63355.0,63354.0,0.003124]
[1719866694360,2.06491004,63355.0,63354.0,0.003124]
[1719866694967,2.09491004,63355.0,63354.0,0.003124]
[1719866695611,2.09490993,63355.0,63354.0,0.003124]
[1719866695816,2.06490993,63355.0,63354.0,0.003124]
[1719866697832,2.09490993,63355.0,63354.0,0.003124]
[1719866698842,2.09490878,63355.0,63354.0,0.003124]
[1719866699453,2.06490878,63355.0,63354.0,0.003124]
[1719866700310,2.09490878,63355.0,63354.0,0.003124]
[1719866701394,2.09491955,63355.0,63354.0,0.003124]
[1719866701611,2.08503275,63355.0,63354.0,0.003124]
[1719866701816,2.09492067,63355.0,63354.0,0.003124]
[1719866702297,0.90626911,63355.0,63354.0,0.144524]
[1719866702515,0.26031992,63355.0,63354.0,0.78039198]
[1719866702803,0.250432,63355.0,63354.0,1.10267798]
[1719866703038,0.21380413,63355.0,63354.0,1.41836398]
[1719866703297,0.21380413,63355.0,63354.0,1.10267798]
[1719866704053,0.21380413,63355.0,63354.0,1.09607798]
[1719866704054,0.51033102,63355.0,63354.0,1.09607798]
[1719866704254,0.84541669,63355.0,63354.0,1.09607798]
[1719866704480,0.8078465,63355.0,63354.0,1.09607798]
[1719866704934,0.8078465,63355.0,63354.0,1.10307798]
[1719866705392,0.8078465,63355.0,63354.0,1.11507798]
[1719866705644,0.8597465,63355.0,63354.0,1.11507798]
[1719866706391,0.8597465,63355.0,63354.0,0.48370598]
[1719866709105,0.8078465,63355.0,63354.0,0.48370598]
[1719866709304,0.8078465,63355.0,63354.0,0.79939198]
[1719866713754,0.609219,63355.0,63354.0,0.79939198]
[1719866713964,0.8078465,63355.0,63354.0,0.79939198]
[1719866714400,0.8597465,63355.0,63354.0,0.79939198]
[1719866714917,0.8078465,63355.0,63354.0,0.79939198]
[1719866715140,0.8597465,63355.0,63354.0,0.79939198]
[1719866715526,0.8078465,63355.0,63354.0,0.79939198]
[1719866717933,0.8078465,63355.0,63354.0,1.11507798]
[1719866717934,0.51131961,63355.0,63354.0,1.11507798]
[1719866718134,0.21379731,63355.0,63354.0,1.11507798]
[1719866720745,0.21379731,63355.0,63354.0,1.43076398]
[1719866721099,0.00084,63355.0,63354.0,1.80794998]
[1719866721303,0.00084,63355.0,63354.0,1.83094998]
[1719866721797,0.00084,63355.0,63354.0,1.81894998]
[1719866722163,0.00084,63355.0,63354.0,1.82294998]
[1719866722367,0.00084,63355.0,63354.0,1.83294998]
[1719866722803,0.00084,63355.0,63354.0,1.82294998]
[1719866723353,0.00084,63355.0,63354.0,1.82990079]
[1719866723634,0.00084,63355.0,63354.0,2.24695929]
[1719866724582,0.00084,63355.0,63354.0,2.26095929]
[1719866725046,0.00084,63355.0,63354.0,2.24695929]
[1719866725244,0.00084,63355.0,63354.0,2.23295929]
[1719866725462,0.00084,63355.0,63354.0,2.23395929]
[1719866725862,0.00084,63355.0,63354.0,2.23495929]
[1719866726297,0.00067961,63360.0,63359.0,1.65562481]
[1719866726498,0.00067961,63360.0,63359.0,1.94096379]
[1719866726644,0.00067961,63360.0,63359.0,1.99586379]
[1719866727831,0.00067961,63360.0,63359.0,1.99686379]